fUST/lending_fUST_20240910
["ID","MTS","AMOUNT","RATE_DAILY","PERIOD"]
[337709931,1725982241191,-406.23175322,0.00017431,2]
[337709932,1725982241200,-454.50582054,0.00017431,2]
[337709933,1725982241209,-500.0,0.00017431,2]
[337709934,1725982241219,-500.0,0.00017431,2]
[337709935,1725982241228,-500.0,0.00017431,2]
[337709936,1725982241238,-500.0,0.00017431,2]
[337709937,1725982241248,-500.0,0.00017431,2]
[337709938,1725982241259,-500.0,0.00017431,2]
[337709939,1725982241269,-500.0,0.00017431,2]
[337709940,1725982241279,-500.0,0.00017431,2]
[337709941,1725982241288,-500.0,0.00017431,2]
[337709942,1725982241298,-500.0,0.00017431,2]
[337709943,1725982241308,-500.0,0.00017431,2]
[337709944,1725982241317,-500.0,0.00017431,2]
[337709945,1725982241327,-737.49,0.00017431,2]
[337709946,1725982241336,-500.0,0.00017431,2]
[337709947,1725982241346,-500.0,0.00017431,2]
[337709948,1725982241355,-500.0,0.00017431,2]
[337709949,1725982241364,-702.31,0.00017431,2]
[337709950,1725982241374,-500.0,0.00017431,2]
[337709951,1725982241383,-500.0,0.00017431,2]
[337709952,1725982241397,-500.0,0.00017431,2]
[337709953,1725982241407,-500.0,0.00017431,2]
[337709954,1725982241417,-699.42,0.00017431,2]
[337709955,1725982241426,-500.0,0.00017431,2]
[337709956,1725982241437,-500.0,0.00017431,2]
[337709957,1725982241447,-585.01808469,0.00017431,2]
[337709958,1725982241457,-186.13707534,0.00017431,2]
[337709959,1725982241466,-1157.82,0.00017431,2]
[337709960,1725982241476,-500.0,0.00017431,2]
[337709961,1725982241490,-500.0,0.00017431,2]
[337709962,1725982241500,-500.0,0.00017431,2]
[337709963,1725982241509,-816.71,0.00017431,2]
[337709964,1725982241519,-573.47,0.00017431,2]
[337709965,1725982241529,-1291.57,0.00017431,2]
[337709966,1725982241539,-500.0,0.00017431,2]
[337709967,1725982241548,-500.0,0.00017431,2]
[337709968,1725982241558,-500.0,0.00017431,2]
[337709969,1725982241568,-6083.25,0.00017431,2]
[337709970,1725982241577,-500.0,0.00017431,2]
[337709971,1725982241586,-500.0,0.00017431,2]
[337709972,1725982241595,-1065.55,0.00017431,2]
[337709973,1725982241604,-828.18,0.00017431,2]
[337709974,1725982241614,-1520.81,0.00017431,2]
[337709975,1725982241624,-1370.22,0.00017431,2]
[337709976,1725982241634,-500.0,0.00017431,2]
[337709977,1725982241643,-58014.06,0.00017431,2]
[337709978,1725982241653,-500.0,0.00017431,2]
[337709979,1725982241662,-500.0,0.00017431,2]
[337709980,1725982241671,-549.65,0.00017431,2]
[337709981,1725982241680,-500.0,0.00017431,2]
[337709982,1725982241689,-582.68,0.00017431,2]
[337709983,1725982241699,-500.0,0.00017431,2]
[337709984,1725982241708,-500.0,0.00017431,2]
[337709985,1725982241718,-2999.95,0.00017431,2]
[337709986,1725982241727,-663.07,0.00017431,2]
[337709987,1725982241737,-673.84,0.00017431,2]
[337709988,1725982241746,-500.0,0.00017431,2]
[337709989,1725982241756,-500.0,0.00017431,2]
[337709990,1725982241765,-568.9,0.00017431,2]
[337709991,1725982241775,-563.51,0.00017431,2]
[337709992,1725982241784,-521.51,0.00017431,2]
[337709993,1725982241794,-472.67660704,0.00017431,2]
[337709994,1725982241803,-500.0,0.00017431,2]
[337709995,1725982241812,-737.11,0.00017431,2]
[337709996,1725982241822,-500.0,0.00017431,2]
[337709997,1725982241831,-500.0,0.00017431,2]
[337709998,1725982241840,-628.43,0.00017431,2]
[337709999,1725982241850,-500.0,0.00017431,2]
[337710000,1725982241860,-500.0,0.00017431,2]
[337710001,1725982241869,-717.63,0.00017431,2]
[337710002,1725982241878,-500.0,0.00017431,2]
[337710003,1725982241888,-785.79,0.00017432,2]
[337710004,1725982241897,-500.0,0.00017432,2]
[337710005,1725982241907,-500.0,0.00017432,2]
[337710006,1725982241916,-500.0,0.00017432,2]
[337710007,1725982241926,-631.04,0.00017432,2]
[337710008,1725982241936,-500.0,0.00017432,2]
[337710009,1725982241946,-500.0,0.00017432,2]
[337710010,1725982241956,-500.0,0.00017432,2]
[337710011,1725982241967,-801.31,0.00017432,2]
[337710012,1725982241977,-500.0,0.00017432,2]
[337710013,1725982241987,-726.11,0.00017432,2]
[337710014,1725982241997,-500.0,0.00017432,2]
[337710015,1725982242007,-898.91,0.00017432,2]
[337710016,1725982242018,-500.0,0.00017432,2]
[337710017,1725982242036,-761.46,0.00017432,2]
[337710018,1725982242049,-810.82,0.00017432,2]
[337710019,1725982242060,-500.0,0.00017432,2]
[337710020,1725982242070,-500.0,0.00017432,2]
[337710021,1725982242081,-645.12,0.00017432,2]
[337710022,1725982242091,-583.0,0.00017432,2]
[337710023,1725982242100,-1522.6,0.00017432,2]
[337710024,1725982242110,-1638.14,0.00017432,2]
[337710025,1725982242120,-500.0,0.00017432,2]
[337710026,1725982242130,-1028.24,0.00017432,2]
[337710027,1725982242140,-500.0,0.00017432,2]
[337710028,1725982242149,-500.0,0.00017432,2]
[337710029,1725982242158,-1023.1,0.00017432,2]
[337710030,1725982242168,-500.0,0.00017432,2]
[337710031,1725982242177,-716.27,0.00017432,2]
[337710032,1725982242187,-719.83,0.00017432,2]
[337710033,1725982242196,-1095.72,0.00017432,2]
[337710034,1725982242206,-1551.35,0.00017432,2]
[337710035,1725982242216,-1683.32,0.00017432,2]
[337710036,1725982242226,-1231.08,0.00017432,2]
[337710037,1725982242236,-500.0,0.00017432,2]
[337710038,1725982242246,-1788.26,0.00017432,2]
[337710039,1725982242256,-582.21,0.00017432,2]
[337710040,1725982242266,-500.0,0.00017432,2]
[337710041,1725982242276,-500.0,0.00017432,2]
[337710042,1725982242420,-500.0,0.00017432,2]
[337710043,1725982242430,-589.66,0.00017432,2]
[337710044,1725982242439,-671.19,0.00017432,2]
[337710045,1725982242450,-1101.26,0.00017432,2]
[337710046,1725982242459,-500.0,0.00017432,2]
[337710047,1725982242469,-900.41,0.00017432,2]
[337710048,1725982242479,-500.0,0.00017432,2]
[337710049,1725982242488,-2262.35,0.00017432,2]
[337710050,1725982242497,-906.65,0.00017432,2]
[337710051,1725982242507,-1631.15,0.00017432,2]
[337710052,1725982242517,-4184.79,0.00017432,2]
[337710053,1725982242533,-500.0,0.00017432,2]
[337710054,1725982242547,-500.0,0.00017432,2]
[337710055,1725982242556,-500.0,0.00017432,2]
[337710056,1725982242565,-500.0,0.00017432,2]
[337710057,1725982242575,-500.0,0.00017432,2]
[337710058,1725982242587,-627.31,0.00017432,2]
[337710059,1725982242596,-586.98,0.00017432,2]
[337710060,1725982242606,-500.0,0.00017432,2]
[337710061,1725982242615,-500.0,0.00017432,2]
[337710062,1725982242625,-1139.29,0.00017432,2]
[337710063,1725982242634,-550.92,0.00017432,2]
[337710064,1725982242644,-594.27,0.00017432,2]
[337710065,1725982242654,-619.2,0.00017432,2]
[337710066,1725982242663,-500.0,0.00017432,2]
[337710067,1725982242672,-682.42,0.00017432,2]
[337710068,1725982242681,-1796.48,0.00017432,2]
[337710069,1725982242691,-500.0,0.00017432,2]
[337710070,1725982242701,-500.0,0.00017432,2]
[337710071,1725982242710,-500.0,0.00017432,2]
[337710072,1725982242719,-1601.57,0.00017432,2]
[337710073,1725982242728,-691.82,0.00017432,2]
[337710074,1725982242737,-500.0,0.00017432,2]
[337710075,1725982242747,-500.0,0.00017432,2]
[337710076,1725982242757,-500.0,0.00017433,2]
[337710077,1725982242766,-500.0,0.00017433,2]
[337710078,1725982242776,-500.0,0.00017433,2]
[337710079,1725982242785,-500.0,0.00017433,2]
[337710081,1725982242795,-500.0,0.00017433,2]
[337710083,1725982242805,-562.97,0.00017433,2]
[337710084,1725982242815,-500.0,0.00017433,2]
[337710085,1725982242825,-1074.51,0.00017433,2]
[337710087,1725982242834,-500.0,0.00017433,2]
[337710089,1725982242843,-500.0,0.00017433,2]
[337710092,1725982242853,-500.0,0.00017433,2]
[337710094,1725982242862,-500.0,0.00017433,2]
[337710095,1725982242872,-500.0,0.00017433,2]
[337710096,1725982242882,-1054.4,0.00017433,2]
[337710097,1725982242891,-581.07,0.00017433,2]
[337710098,1725982242900,-500.0,0.00017433,2]
[337710099,1725982242910,-500.0,0.00017433,2]
[337710100,1725982242920,-500.0,0.00017433,2]
[337710101,1725982242929,-533.67,0.00017433,2]
[337710102,1725982242939,-768.23,0.00017433,2]
[337710103,1725982242949,-500.0,0.00017433,2]
[337710104,1725982242958,-500.0,0.00017433,2]
[337710105,1725982242968,-1221.53,0.00017433,2]
[337710106,1725982242978,-500.0,0.00017433,2]
[337710107,1725982242988,-500.0,0.00017433,2]
[337710108,1725982242997,-500.0,0.00017433,2]
[337710109,1725982243007,-876.78,0.00017433,2]
[337710110,1725982243016,-500.0,0.00017433,2]
[337710111,1725982243031,-500.0,0.00017433,2]
[337710112,1725982243041,-500.0,0.00017433,2]
[337710113,1725982243057,-687.76,0.00017433,2]
[337710114,1725982243066,-500.0,0.00017433,2]
[337710115,1725982243076,-500.0,0.00017433,2]
[337710116,1725982243085,-500.0,0.00017433,2]
[337710117,1725982243094,-1531.64,0.00017433,2]
[337710118,1725982243104,-500.0,0.00017433,2]
[337710119,1725982243114,-444.96002821,0.00017433,2]
[337710120,1725982243124,-500.0,0.00017433,2]
[337710121,1725982243135,-500.0,0.00017433,2]
[337710122,1725982243145,-913.5,0.00017433,2]
[337710123,1725982243156,-500.0,0.00017433,2]
[337710124,1725982243166,-500.0,0.00017433,2]
[337710125,1725982243176,-500.0,0.00017433,2]
[337710126,1725982243186,-1204.2,0.00017433,2]
[337710127,1725982243195,-500.0,0.00017433,2]
[337710128,1725982243204,-500.0,0.00017433,2]
[337710129,1725982243214,-500.0,0.00017433,2]
[337710130,1725982243224,-689.62,0.00017433,2]
[337710131,1725982243234,-500.0,0.00017433,2]
[337710132,1725982243243,-500.0,0.00017433,2]
[337710133,1725982243253,-696.99,0.00017433,2]
[337710134,1725982243263,-500.0,0.00017433,2]
[337710135,1725982243274,-645.53,0.00017433,2]
[337710136,1725982243290,-500.0,0.00017433,2]
[337710137,1725982243299,-1343.65,0.00017433,2]
[337710138,1725982243309,-715.36,0.00017433,2]
[337710139,1725982243319,-500.0,0.00017433,2]
[337710140,1725982243329,-671.47,0.00017433,2]
[337710141,1725982243338,-500.0,0.00017434,2]
[337710142,1725982243347,-500.0,0.00017434,2]
[337710143,1725982243357,-500.0,0.00017434,2]
[337710144,1725982243367,-500.0,0.00017434,2]
[337710145,1725982243377,-500.0,0.00017434,2]
[337710146,1725982243387,-500.0,0.00017434,2]
[337710147,1725982243402,-500.0,0.00017434,2]
[337710148,1725982243413,-500.0,0.00017434,2]
[337710149,1725982243423,-500.0,0.00017434,2]
[337710150,1725982243436,-500.0,0.00017434,2]
[337710151,1725982243446,-500.0,0.00017434,2]
[337710152,1725982243457,-500.0,0.00017434,2]
[337710153,1725982243466,-500.0,0.00017434,2]
[337710154,1725982243476,-985.94,0.00017434,2]
[337710155,1725982243486,-500.0,0.00017434,2]
[337710156,1725982243495,-500.0,0.00017434,2]
[337710157,1725982243504,-9791.96121745,0.00017468,2]
[337710158,1725982243516,-161.3753648,0.00017473,2]
[337710160,1725982243531,-502.07550301,0.00017473,2]
[337710162,1725982243542,-500.0,0.00017473,2]
[337710164,1725982243551,-410.41087277,0.00017473,2]
[337710166,1725982243563,-500.0,0.00017473,2]
[337710167,1725982243572,-549.38006289,0.00017473,2]
[337710168,1725982243583,-288.13935916,0.00017473,2]
[337710169,1725982243592,-500.0,0.00017473,2]
[337710170,1725982243602,-500.0,0.00017473,2]
[337710171,1725982243612,-500.0,0.00017473,2]
[337710172,1725982243622,-637.16326861,0.00017473,2]
[337710173,1725982243632,-150.112233,0.000175,2]
[337710174,1725982243642,-150.112233,0.000175,2]
[337710175,1725982243653,-150.112233,0.000175,2]
[337710176,1725982243663,-150.112233,0.000175,2]
[337710177,1725982243673,-150.112233,0.000175,2]
[337710178,1725982243683,-150.112233,0.000175,2]
[337710179,1725982243698,-150.112233,0.000175,2]
[337710180,1725982243707,-150.112233,0.000175,2]
[337710181,1725982243717,-9791.96121745,0.00017537,2]
[337710182,1725982243726,-150.112233,0.000176,2]
[337710183,1725982243736,-150.112233,0.000176,2]
[337710184,1725982243746,-150.112233,0.000176,2]
[337710185,1725982243757,-150.112233,0.000176,2]
[337710186,1725982243766,-150.112233,0.000176,2]
[337710187,1725982243777,-150.112233,0.000176,2]
[337710188,1725982243787,-2755.5597849,0.00017604,2]
[337710189,1725982243796,-9791.96121745,0.00017605,2]
[337710190,1725982243807,-486.6665331,0.00017672,2]
[337710191,1725982243816,-150.112233,0.000177,2]
[337710192,1725982243826,-150.112233,0.000177,2]
[337710193,1725982243837,-150.112233,0.000177,2]
[337710194,1725982243848,-150.112233,0.000177,2]
[337710195,1725982243858,-150.112233,0.000177,2]
[337710196,1725982243868,-1700.15,0.00017703,2]
[337710197,1725982243878,-3791.58,0.00017703,2]
[337710198,1725982243888,-726.21,0.00017703,2]
[337710199,1725982243898,-844.46,0.00017703,2]
[337710200,1725982243908,-822.93,0.00017703,2]
[337710201,1725982243918,-754.43,0.00017703,2]
[337710202,1725982243927,-500.0,0.00017703,2]
[337710203,1725982243937,-5790.25,0.00017703,2]
[337710204,1725982243949,-740.26,0.00017703,2]
[337710205,1725982243959,-1016.88,0.00017703,2]
[337710206,1725982243968,-3277.84,0.00017703,2]
[337710207,1725982243977,-653.6,0.00017703,2]
[337710208,1725982243988,-500.0,0.00017703,2]
[337710209,1725982243997,-500.0,0.00017703,2]
[337710210,1725982244007,-3024.85,0.00017703,2]
[337710211,1725982244016,-500.0,0.00017704,2]
[337710212,1725982244026,-500.0,0.00017704,2]
[337710213,1725982244036,-718.62,0.00017704,2]
[337710214,1725982244045,-500.0,0.00017704,2]
[337710215,1725982244055,-558.35165465,0.00017704,2]
[337710216,1725982244065,-1078.99,0.00017704,2]
[337710217,1725982244074,-500.0,0.00017704,2]
[337710218,1725982244083,-559.07,0.00017704,2]
[337710219,1725982244093,-500.0,0.00017704,2]
[337710220,1725982244103,-500.0,0.00017704,2]
[337710221,1725982244113,-500.0,0.00017704,2]
[337710222,1725982244124,-500.0,0.00017704,2]
[337710223,1725982244134,-500.0,0.00017704,2]
[337710224,1725982244144,-1292.72,0.00017704,2]
[337710225,1725982244154,-500.0,0.00017704,2]
[337710226,1725982244164,-500.0,0.00017704,2]
[337710227,1725982244174,-1147.04,0.00017704,2]
[337710228,1725982244183,-500.0,0.00017704,2]
[337710229,1725982244193,-500.0,0.00017704,2]
[337710230,1725982244202,-500.0,0.00017704,2]
[337710231,1725982244210,-2052.88,0.00017704,2]
[337710232,1725982244220,-500.0,0.00017704,2]
[337710233,1725982244230,-850.77,0.00017704,2]
[337710234,1725982244240,-805.43,0.00017704,2]
[337710235,1725982244249,-505.25,0.00017704,2]
[337710236,1725982244258,-500.0,0.00017704,2]
[337710237,1725982244268,-1309.89,0.00017704,2]
[337710238,1725982244279,-813.2,0.00017704,2]
[337710239,1725982244288,-509.49,0.00017704,2]
[337710240,1725982244298,-500.0,0.00017704,2]
[337710241,1725982244309,-1673.82,0.00017704,2]
[337710242,1725982244319,-644.73,0.00017704,2]
[337710243,1725982244329,-500.0,0.00017704,2]
[337710244,1725982244339,-500.0,0.00017704,2]
[337710245,1725982244349,-1111.61,0.00017704,2]
[337710246,1725982244360,-1357.72,0.00017704,2]
[337710247,1725982244369,-500.0,0.00017704,2]
[337710248,1725982244378,-501.1,0.00017704,2]
[337710249,1725982244388,-500.0,0.00017704,2]
[337710250,1725982244398,-500.0,0.00017704,2]
[337710251,1725982244411,-500.0,0.00017704,2]
[337710252,1725982244420,-500.0,0.00017704,2]
[337710253,1725982244429,-1312.11,0.00017704,2]
[337710254,1725982244439,-1453.25,0.00017704,2]
[337710255,1725982244448,-1336.11,0.00017704,2]
[337710256,1725982244457,-675.89071498,0.00017704,2]
[337710257,1725982244480,-54.12928502,0.00017704,2]
[337710258,1725982244489,-602.25,0.00017704,2]
[337710259,1725982244498,-923.05,0.00017704,2]
[337710260,1725982244508,-620.36,0.00017704,2]
[337710261,1725982244517,-1634.66,0.00017704,2]
[337710262,1725982244527,-585.12,0.00017704,2]
[337710263,1725982244538,-500.0,0.00017704,2]
[337710264,1725982244547,-1179.91,0.00017704,2]
[337710265,1725982244556,-500.0,0.00017704,2]
[337710266,1725982244566,-1395.94,0.00017704,2]
[337710267,1725982244576,-500.0,0.00017704,2]
[337710268,1725982244585,-2949.38,0.00017704,2]
[337710269,1725982244595,-500.0,0.00017704,2]
[337710270,1725982244604,-505.77,0.00017704,2]
[337710271,1725982244614,-500.0,0.00017704,2]
[337710272,1725982244623,-500.0,0.00017704,2]
[337710273,1725982244632,-536.57,0.00017704,2]
[337710274,1725982244644,-1594.51,0.00017704,2]
[337710275,1725982244653,-8481.71645012,0.00017704,2]
[337710276,1725982244927,-500.0,0.00017429,2]
[337710277,1725982244937,-500.0,0.00017703,2]
[337710278,1725982244947,-25151.18354988,0.00017704,2]
[337710279,1725982244957,-548.67,0.00017704,2]
[337710280,1725982244967,-500.0,0.00017704,2]
[337710281,1725982244976,-41780.57,0.00017704,2]
[337710282,1725982244986,-1498.56,0.00017704,2]
[337710283,1725982244996,-500.0,0.00017704,2]
[337710284,1725982245005,-659.77,0.00017704,2]
[337710285,1725982245015,-1851.13,0.00017704,2]
[337710286,1725982245025,-500.0,0.00017704,2]
[337710287,1725982245035,-1603.63,0.00017704,2]
[337710288,1725982245044,-500.0,0.00017704,2]
[337710289,1725982245054,-5139.38,0.00017704,2]
[337710290,1725982245064,-500.0,0.00017704,2]
[337710291,1725982245073,-695.03,0.00017704,2]
[337710292,1725982245082,-500.0,0.00017704,2]
[337710293,1725982245091,-643.87,0.00017704,2]
[337710294,1725982245100,-3683.84,0.00017704,2]
[337710295,1725982245111,-500.0,0.00017704,2]
[337710296,1725982245262,-600.72,0.00017704,2]
[337710297,1725982245273,-500.0,0.00017704,2]
[337710298,1725982245285,-500.0,0.00017704,2]
[337710299,1725982245295,-1768.51,0.00017704,2]
[337710300,1725982245304,-500.0,0.00017704,2]
[337710301,1725982245315,-1669.41,0.00017704,2]
[337710302,1725982245326,-843.92,0.00017704,2]
[337710303,1725982245336,-500.0,0.00017704,2]
[337710304,1725982245345,-2864.85,0.00017704,2]
[337710305,1725982245354,-500.0,0.00017704,2]
[337710306,1725982245364,-641.38,0.00017704,2]
[337710307,1725982245373,-1221.52,0.00017704,2]
[337710308,1725982245383,-500.0,0.00017704,2]
[337710309,1725982245394,-1792.13,0.00017704,2]
[337710310,1725982245404,-500.0,0.00017704,2]
[337710311,1725982245415,-3768.52,0.00017704,2]
[337710312,1725982245425,-500.0,0.00017704,2]
[337710313,1725982245435,-873.59,0.00017704,2]
[337710314,1725982245445,-500.0,0.00017704,2]
[337710315,1725982245455,-3676.58,0.00017704,2]
[337710316,1725982245465,-522.80613809,0.00017705,2]
[337710317,1725982245478,-500.0,0.00017705,2]
[337710318,1725982245488,-534.11170401,0.00017705,2]
[337710319,1725982245498,-500.0,0.00017705,2]
[337710320,1725982245508,-500.0,0.00017705,2]
[337710321,1725982245518,-500.0,0.00017705,2]
[337710322,1725982245529,-915.43,0.00017705,2]
[337710323,1725982245538,-211.13,0.00017705,2]
[337710324,1725982245548,-500.0,0.00017705,2]
[337710325,1725982245558,-500.0,0.00017705,2]
[337710326,1725982245568,-500.0,0.00017705,2]
[337710327,1725982245578,-513.94186108,0.00017705,2]
[337710328,1725982245588,-500.0,0.00017705,2]
[337710329,1725982245597,-1220.72,0.00017705,2]
[337710330,1725982245606,-500.0,0.00017705,2]
[337710331,1725982245615,-500.0,0.00017705,2]
[337710332,1725982245625,-500.0,0.00017705,2]
[337710333,1725982245636,-500.0,0.00017705,2]
[337710334,1725982245646,-179.57994494,0.00017705,2]
[337710335,1725982245655,-500.0,0.00017705,2]
[337710336,1725982245665,-504.51,0.00017705,2]
[337710337,1725982245676,-500.0,0.00017705,2]
[337710338,1725982245685,-372.1353062,0.00017705,2]
[337710339,1725982245695,-500.0,0.00017705,2]
[337710340,1725982245705,-500.0,0.00017705,2]
[337710341,1725982245715,-577.61,0.00017705,2]
[337710342,1725982245725,-520.25,0.00017705,2]
[337710343,1725982245735,-500.0,0.00017705,2]
[337710344,1725982245745,-500.0,0.00017705,2]
[337710345,1725982245757,-567.27,0.00017705,2]
[337710346,1725982245767,-500.0,0.00017705,2]
[337710347,1725982245779,-500.0,0.00017705,2]
[337710348,1725982245789,-500.0,0.00017705,2]
[337710349,1725982245799,-500.0,0.00017705,2]
[337710350,1725982245810,-500.0,0.00017705,2]
[337710352,1725982245820,-500.0,0.00017705,2]
[337710353,1725982245830,-500.0,0.00017705,2]
[337710354,1725982245840,-500.0,0.00017705,2]
[337710356,1725982245850,-500.0,0.00017705,2]
[337710357,1725982245859,-1188.47,0.00017705,2]
[337710359,1725982245870,-500.0,0.00017705,2]
[337710361,1725982245881,-500.0,0.00017705,2]
[337710362,1725982245891,-500.0,0.00017705,2]
[337710363,1725982245901,-549.89,0.00017705,2]
[337710364,1725982245912,-500.0,0.00017705,2]
[337710365,1725982245922,-640.7,0.00017705,2]
[337710366,1725982245932,-500.0,0.00017705,2]
[337710367,1725982245942,-500.0,0.00017705,2]
[337710368,1725982245951,-500.0,0.00017705,2]
[337710369,1725982245962,-500.0,0.00017705,2]
[337710370,1725982245971,-500.0,0.00017705,2]
[337710371,1725982245982,-1584.58,0.00017705,2]
[337710372,1725982245992,-500.0,0.00017705,2]
[337710373,1725982246002,-858.49,0.00017705,2]
[337710374,1725982246012,-500.0,0.00017705,2]
[337710375,1725982246022,-981.28,0.00017705,2]
[337710376,1725982246032,-500.0,0.00017705,2]
[337710377,1725982246042,-619.95,0.00017705,2]
[337710378,1725982246052,-500.0,0.00017705,2]
[337710379,1725982246062,-561.3,0.00017705,2]
[337710380,1725982246073,-500.0,0.00017705,2]
[337710381,1725982246083,-448.36233362,0.00017705,2]
[337710382,1725982246093,-500.0,0.00017705,2]
[337710383,1725982246103,-500.0,0.00017705,2]
[337710384,1725982246112,-500.0,0.00017705,2]
[337710386,1725982246122,-500.0,0.00017705,2]
[337710388,1725982246132,-1047.83,0.00017705,2]
[337710390,1725982246141,-500.0,0.00017705,2]
[337710391,1725982246151,-500.0,0.00017705,2]
[337710392,1725982246160,-500.0,0.00017705,2]
[337710393,1725982246169,-500.0,0.00017705,2]
[337710394,1725982246179,-306.69299409,0.00017705,2]
[337710395,1725982246188,-550.09,0.00017705,2]
[337710396,1725982246198,-500.0,0.00017705,2]
[337710397,1725982246207,-500.0,0.00017705,2]
[337710398,1725982246222,-500.0,0.00017705,2]
[337710399,1725982246232,-1158.07,0.00017705,2]
[337710400,1725982246242,-500.0,0.00017705,2]
[337710401,1725982246252,-500.0,0.00017705,2]
[337710402,1725982246261,-500.0,0.00017705,2]
[337710404,1725982246271,-500.0,0.00017705,2]
[337710406,1725982246282,-500.0,0.00017705,2]
[337710408,1725982246291,-500.0,0.00017705,2]
[337710410,1725982246301,-500.0,0.00017705,2]
[337710411,1725982246311,-500.0,0.00017705,2]
[337710413,1725982246320,-500.0,0.00017705,2]
[337710414,1725982246330,-500.0,0.00017705,2]
[337710415,1725982246340,-500.0,0.00017705,2]
[337710416,1725982246350,-500.0,0.00017705,2]
[337710417,1725982246363,-500.0,0.00017705,2]
[337710419,1725982246373,-500.0,0.00017705,2]
[337710420,1725982246383,-737.49,0.00017705,2]
[337710421,1725982246395,-500.0,0.00017705,2]
[337710422,1725982246404,-500.0,0.00017705,2]
[337710423,1725982246414,-535.02670543,0.00017705,2]
[337710424,1725982246425,-702.31,0.00017705,2]
[337710425,1725982246434,-500.0,0.00017705,2]
[337710426,1725982246445,-500.0,0.00017705,2]
[337710427,1725982246454,-500.0,0.00017705,2]
[337710428,1725982246464,-500.0,0.00017705,2]
[337710429,1725982246474,-699.42,0.00017705,2]
[337710430,1725982246486,-500.0,0.00017705,2]
[337710431,1725982246496,-500.0,0.00017705,2]
[337710432,1725982246506,-1157.82,0.00017705,2]
[337710433,1725982246516,-500.0,0.00017705,2]
[337710434,1725982246533,-500.0,0.00017705,2]
[337710435,1725982246549,-500.0,0.00017705,2]
[337710436,1725982246563,-816.71,0.00017705,2]
[337710437,1725982246578,-573.47,0.00017705,2]
[337710438,1725982246593,-1291.57,0.00017705,2]
[337710439,1725982246607,-500.0,0.00017705,2]
[337710440,1725982246623,-500.0,0.00017705,2]
[337710441,1725982246639,-500.0,0.00017705,2]
[337710442,1725982246654,-6083.25,0.00017705,2]
[337710443,1725982246668,-500.0,0.00017705,2]
[337710444,1725982246681,-500.0,0.00017705,2]
[337710445,1725982246697,-1065.55,0.00017705,2]
[337710446,1725982246711,-828.18,0.00017705,2]
[337710447,1725982246727,-1520.81,0.00017705,2]
[337710448,1725982246738,-1370.22,0.00017705,2]
[337710449,1725982246752,-500.0,0.00017705,2]
[337710450,1725982246768,-58014.06,0.00017705,2]
[337710451,1725982246784,-500.0,0.00017705,2]
[337710452,1725982246796,-500.0,0.00017705,2]
[337710453,1725982246812,-549.65,0.00017705,2]
[337710454,1725982246829,-500.0,0.00017705,2]